fUSD/lending_fUSD_20250206
["ID","MTS","AMOUNT","RATE_DAILY","PERIOD"]
[351989488,1738869070421,-500.0,0.0001726,2]
[351989489,1738869070430,-917.36,0.0001726,2]
[351989490,1738869070440,-2012.37,0.0001726,2]
[351989491,1738869070449,-581.15,0.0001726,2]
[351989492,1738869070458,-1680.18,0.0001726,2]
[351989493,1738869070468,-1207.36,0.0001726,2]
[351989494,1738869070478,-581.67,0.0001726,2]
[351989495,1738869070487,-1132.12,0.0001726,2]
[351989496,1738869070501,-500.0,0.0001726,2]
[351989497,1738869070511,-1498.04,0.0001726,2]
[351989498,1738869070520,-500.0,0.0001726,2]
[351989499,1738869070531,-500.0,0.0001726,2]
[351989500,1738869070540,-1513.16,0.0001726,2]
[351989501,1738869070549,-925.3,0.0001726,2]
[351989502,1738869070559,-2321.43,0.0001726,2]
[351989503,1738869070568,-530.46,0.0001726,2]
[351989504,1738869070578,-819.37,0.0001726,2]
[351989505,1738869070587,-751.5,0.0001726,2]
[351989506,1738869070599,-1131.41,0.0001726,2]
[351989507,1738869070608,-516.32,0.0001726,2]
[351989508,1738869070618,-500.0,0.0001726,2]
[351989509,1738869070628,-500.0,0.0001726,2]
[351989510,1738869070638,-887.03,0.0001726,2]
[351989511,1738869070648,-500.0,0.0001726,2]
[351989512,1738869070657,-1716.92,0.0001726,2]
[351989513,1738869070667,-750.35,0.0001726,2]
[351989514,1738869070677,-500.0,0.0001726,2]
[351989515,1738869070687,-500.0,0.0001726,2]
[351989516,1738869070698,-985.16,0.0001726,2]
[351989517,1738869070707,-1146.94,0.0001726,2]
[351989518,1738869070717,-1123.01,0.0001726,2]
[351989519,1738869070727,-1926.78,0.0001726,2]
[351989520,1738869070736,-500.0,0.0001726,2]
[351989521,1738869070746,-849.89,0.0001726,2]
[351989522,1738869070756,-774.75,0.0001726,2]
[351989523,1738869070766,-910.06,0.0001726,2]
[351989524,1738869070775,-750.33,0.0001726,2]
[351989525,1738869070785,-608.94,0.0001726,2]
[351989526,1738869070794,-1462.54,0.0001726,2]
[351989527,1738869070804,-543.86,0.0001726,2]
[351989528,1738869070813,-561.62,0.0001726,2]
[351989529,1738869070823,-527.28,0.0001726,2]
[351989530,1738869070833,-500.0,0.0001726,2]
[351989531,1738869070842,-500.0,0.0001726,2]
[351989532,1738869070854,-726.86,0.0001726,2]
[351989533,1738869070863,-871.24,0.0001726,2]
[351989534,1738869070873,-839.79,0.0001726,2]
[351989535,1738869070883,-679.77,0.0001726,2]
[351989536,1738869070892,-500.0,0.0001726,2]
[351989537,1738869070901,-774.5,0.0001726,2]
[351989538,1738869070911,-639.6,0.0001726,2]
[351989539,1738869070920,-500.0,0.0001726,2]
[351989540,1738869070930,-21199.62631663,0.00017272,2]
[351989541,1738869070939,-150.0,0.00017331,2]
[351989542,1738869070949,-500.0,0.00017333,2]
[351989543,1738869070959,-500.0,0.00017333,2]
[351989544,1738869070968,-500.91379495,0.00017333,2]
[351989545,1738869070978,-887.55,0.00017333,2]
[351989546,1738869070987,-887.55,0.00017333,2]
[351989547,1738869070997,-431.53194145,0.00017347,2]
[351989548,1738869071006,-500.65480734,0.00017373,2]
[351989549,1738869071015,-233.08985532,0.00017378,2]
[351989550,1738869071025,-1546.53141593,0.00017378,2]
[351989551,1738869071035,-4785.88259617,0.00017379,2]
[351989552,1738869071044,-200.0,0.0001738,2]
[351989553,1738869071053,-12422.04584798,0.0001738,2]
[351989554,1738869071063,-73009.44024472,0.00017382,2]
[351989555,1738869071072,-4541.03641052,0.00017384,2]
[351989556,1738869071082,-4785.88259617,0.00017384,2]
[351989557,1738869071091,-2392.94129809,0.00017387,2]
[351989558,1738869071103,-2270.51820527,0.00017391,2]
[351989559,1738869071112,-76428.31021318,0.00017391,2]
[351989560,1738869071122,-2270.51820527,0.00017392,2]
[351989561,1738869071132,-378.83,0.00017392,2]
[351989562,1738869071141,-12422.04584798,0.00017392,2]
[351989563,1738869071151,-2090.4404991,0.00017394,2]
[351989564,1738869071160,-76428.31021318,0.00017394,2]
[351989565,1738869071170,-2270.51820526,0.00017395,2]
[351989566,1738869071179,-2392.94129809,0.00017395,2]
[351989567,1738869071189,-4541.03641052,0.00017395,2]
[351989568,1738869071199,-2090.4404991,0.00017396,2]
[351989569,1738869071208,-150.0,0.00017396,2]
[351989570,1738869071218,-734.7,0.00017396,2]
[351989571,1738869071228,-887.55,0.00017396,2]
[351989572,1738869071237,-170.418657,0.00017397,2]
[351989573,1738869071247,-500.0,0.00017397,2]
[351989574,1738869071257,-200.145142,0.00017397,2]
[351989575,1738869071267,-500.0,0.00017397,2]
[351989576,1738869071276,-500.0,0.00017397,2]
[351989577,1738869071286,-658.15,0.00017397,2]
[351989578,1738869071296,-500.0,0.00017397,2]
[351989579,1738869071305,-500.0,0.00017397,2]
[351989580,1738869071315,-803.61,0.00017397,2]
[351989581,1738869071328,-544.03,0.00017397,2]
[351989582,1738869071338,-500.0,0.00017397,2]
[351989583,1738869071348,-500.0,0.00017397,2]
[351989584,1738869071360,-546.29,0.00017397,2]
[351989585,1738869071370,-500.0,0.00017397,2]
[351989586,1738869071379,-500.0,0.00017397,2]
[351989587,1738869071389,-705.77,0.00017397,2]
[351989588,1738869071398,-500.0,0.00017397,2]
[351989589,1738869071408,-500.0,0.00017397,2]
[351989590,1738869071418,-500.0,0.00017397,2]
[351989591,1738869071428,-500.0,0.00017397,2]
[351989592,1738869071438,-572.78,0.00017397,2]
[351989593,1738869071447,-500.0,0.00017397,2]
[351989594,1738869071456,-545.15888263,0.00017397,2]
[351989595,1738869071466,-500.0,0.00017397,2]
[351989596,1738869071476,-500.0,0.00017397,2]
[351989597,1738869071486,-500.0,0.00017397,2]
[351989598,1738869071497,-625.43,0.00017397,2]
[351989599,1738869071508,-500.0,0.00017397,2]
[351989600,1738869071521,-595.98,0.00017397,2]
[351989601,1738869071531,-500.0,0.00017397,2]
[351989602,1738869071542,-161.57328652,0.00017397,2]
[351989603,1738869071552,-500.0,0.00017397,2]
[351989604,1738869071563,-500.0,0.00017397,2]
[351989605,1738869071573,-514.04,0.00017397,2]
[351989606,1738869071583,-500.0,0.00017397,2]
[351989607,1738869071594,-500.0,0.00017397,2]
[351989608,1738869071608,-757.6,0.00017397,2]
[351989609,1738869071617,-500.0,0.00017397,2]
[351989610,1738869071627,-1291.91,0.00017397,2]
[351989611,1738869071637,-505.03,0.00017397,2]
[351989612,1738869071646,-682.29,0.00017397,2]
[351989613,1738869071656,-500.0,0.00017397,2]
[351989614,1738869071666,-500.0,0.00017397,2]
[351989615,1738869071675,-500.0,0.00017397,2]
[351989616,1738869071685,-500.86,0.00017397,2]
[351989617,1738869071695,-500.0,0.00017397,2]
[351989618,1738869071704,-500.0,0.00017397,2]
[351989619,1738869071713,-666.89,0.00017397,2]
[351989620,1738869071723,-500.0,0.00017397,2]
[351989621,1738869071732,-500.0,0.00017397,2]
[351989622,1738869071742,-500.0,0.00017397,2]
[351989623,1738869071751,-500.0,0.00017397,2]
[351989624,1738869071761,-500.0,0.00017397,2]
[351989625,1738869071770,-500.0,0.00017397,2]
[351989626,1738869071780,-500.26325562,0.00017397,2]
[351989627,1738869071790,-500.0,0.00017397,2]
[351989628,1738869071799,-500.0,0.00017397,2]
[351989629,1738869071809,-500.0,0.00017397,2]
[351989630,1738869071819,-500.0,0.00017397,2]
[351989631,1738869071829,-658.41,0.00017397,2]
[351989632,1738869071838,-500.0,0.00017397,2]
[351989633,1738869071849,-500.0,0.00017397,2]
[351989634,1738869071859,-500.0,0.00017397,2]
[351989635,1738869071868,-500.0,0.00017397,2]
[351989636,1738869071878,-649.15,0.00017397,2]
[351989637,1738869071888,-500.0,0.00017397,2]
[351989638,1738869071898,-500.0,0.00017397,2]
[351989639,1738869071908,-682.77,0.00017397,2]
[351989640,1738869071918,-500.0,0.00017397,2]
[351989641,1738869071928,-809.52,0.00017397,2]
[351989642,1738869071937,-749.62,0.00017397,2]
[351989643,1738869071947,-500.0,0.00017397,2]
[351989644,1738869071956,-500.0,0.00017397,2]
[351989645,1738869071966,-500.0,0.00017397,2]
[351989646,1738869071975,-500.0,0.00017397,2]
[351989647,1738869071985,-500.0,0.00017397,2]
[351989648,1738869071995,-500.0,0.00017397,2]
[351989649,1738869072004,-210.0,0.00017397,2]
[351989650,1738869072014,-500.0,0.00017397,2]
[351989651,1738869072023,-671.3,0.00017397,2]
[351989652,1738869072033,-500.0,0.00017397,2]
[351989653,1738869072042,-500.0,0.00017397,2]
[351989654,1738869072052,-500.0,0.00017397,2]
[351989655,1738869072061,-447.02262075,0.00017397,2]
[351989656,1738869072070,-500.0,0.00017397,2]
[351989657,1738869072079,-500.0,0.00017397,2]
[351989658,1738869072089,-500.0,0.00017397,2]
[351989659,1738869072101,-727.24,0.00017397,2]
[351989660,1738869072111,-500.0,0.00017397,2]
[351989661,1738869072120,-595.86,0.00017397,2]
[351989662,1738869072130,-500.0,0.00017397,2]
[351989663,1738869072139,-736.27,0.00017397,2]
[351989664,1738869072148,-782.84,0.00017397,2]
[351989665,1738869072158,-546.92,0.00017397,2]
[351989666,1738869072168,-500.0,0.00017397,2]
[351989667,1738869072178,-561.78,0.00017397,2]
[351989668,1738869072187,-1313.34,0.00017397,2]
[351989669,1738869072197,-677.32,0.00017397,2]
[351989670,1738869072207,-500.0,0.00017397,2]
[351989671,1738869072217,-500.0,0.00017397,2]
[351989672,1738869072226,-951.97,0.00017397,2]
[351989673,1738869072236,-500.0,0.00017397,2]
[351989674,1738869072247,-1245.67,0.00017397,2]
[351989675,1738869072256,-729.72,0.00017397,2]
[351989676,1738869072266,-1576.36,0.00017397,2]
[351989677,1738869072276,-947.89,0.00017397,2]
[351989678,1738869072333,-1217.23,0.00017397,2]
[351989679,1738869072343,-500.0,0.00017397,2]
[351989680,1738869072355,-500.0,0.00017397,2]
[351989681,1738869072365,-1009.01,0.00017397,2]
[351989682,1738869072375,-502.81,0.00017397,2]
[351989683,1738869072385,-500.0,0.00017397,2]
[351989684,1738869072396,-1132.51,0.00017397,2]
[351989685,1738869072406,-592.17,0.00017397,2]
[351989686,1738869072416,-698.36,0.00017397,2]
[351989687,1738869072425,-714.09,0.00017397,2]
[351989688,1738869072435,-788.72,0.00017397,2]
[351989689,1738869072445,-500.0,0.00017397,2]
[351989690,1738869072454,-1183.22,0.00017397,2]
[351989691,1738869072464,-1152.38,0.00017397,2]
[351989692,1738869072474,-797.6,0.00017397,2]
[351989693,1738869072483,-588.41,0.00017397,2]
[351989694,1738869072497,-555.42,0.00017397,2]
[351989695,1738869072507,-2551.39,0.00017397,2]
[351989696,1738869072516,-500.0,0.00017397,2]
[351989697,1738869072525,-571.31,0.00017397,2]
[351989698,1738869072536,-759.91,0.00017397,2]
[351989699,1738869072546,-3041.0,0.00017397,2]
[351989700,1738869072555,-500.0,0.00017397,2]
[351989701,1738869072564,-500.0,0.00017397,2]
[351989702,1738869072572,-799.86,0.00017397,2]
[351989703,1738869072584,-609.0,0.00017397,2]
[351989704,1738869072594,-2070.64,0.00017397,2]
[351989705,1738869072604,-500.0,0.00017397,2]
[351989706,1738869072614,-500.0,0.00017397,2]
[351989707,1738869072624,-522.23,0.00017397,2]
[351989708,1738869072633,-928.38,0.00017397,2]
[351989709,1738869072643,-766.76,0.00017397,2]
[351989710,1738869072652,-500.0,0.00017397,2]
[351989711,1738869072662,-716.2,0.00017397,2]
[351989712,1738869072672,-883.93,0.00017397,2]
[351989713,1738869072682,-552.7,0.00017397,2]
[351989714,1738869072691,-1508.2,0.00017397,2]
[351989715,1738869072701,-516.18,0.00017397,2]
[351989716,1738869072710,-432.72891881,0.00017397,2]
[351989717,1738869072720,-1447.02,0.00017397,2]
[351989718,1738869072729,-706.53,0.00017397,2]
[351989719,1738869072739,-500.0,0.00017397,2]
[351989720,1738869072748,-978.65,0.00017397,2]
[351989721,1738869072758,-1153.65,0.00017397,2]
[351989722,1738869072767,-1914.73,0.00017397,2]
[351989723,1738869072777,-579.21,0.00017397,2]
[351989724,1738869072787,-947.99,0.00017397,2]
[351989725,1738869072796,-500.0,0.00017397,2]
[351989726,1738869072805,-628.67,0.00017397,2]
[351989727,1738869072815,-683.61,0.00017397,2]
[351989728,1738869072825,-1019.47,0.00017397,2]
[351989729,1738869072835,-1070.13,0.00017397,2]
[351989730,1738869072844,-500.0,0.00017397,2]
[351989731,1738869072855,-1472.07,0.00017397,2]
[351989732,1738869072865,-1119.85,0.00017397,2]
[351989733,1738869072875,-829.24,0.00017397,2]
[351989734,1738869072884,-1237.8,0.00017397,2]
[351989735,1738869072893,-500.0,0.00017397,2]
[351989736,1738869072903,-768.55,0.00017397,2]
[351989737,1738869072912,-500.0,0.00017397,2]
[351989738,1738869072922,-823.29,0.00017397,2]
[351989739,1738869072931,-3432.47,0.00017397,2]
[351989740,1738869072941,-500.0,0.00017397,2]
[351989741,1738869072950,-500.0,0.00017397,2]
[351989742,1738869072960,-1124.75,0.00017397,2]
[351989743,1738869072970,-1001.46,0.00017397,2]
[351989744,1738869072981,-500.0,0.00017397,2]
[351989745,1738869072991,-592.42,0.00017397,2]
[351989746,1738869073000,-1057.54,0.00017397,2]
[351989747,1738869073009,-500.0,0.00017397,2]
[351989748,1738869073019,-781.47,0.00017397,2]
[351989749,1738869073028,-500.0,0.00017397,2]
[351989750,1738869073038,-363.54322518,0.00017397,2]
[351989751,1738869073048,-1590.71,0.00017397,2]
[351989752,1738869073058,-571.38,0.00017397,2]
[351989753,1738869073068,-547.46,0.00017397,2]
[351989754,1738869073078,-611.88,0.00017397,2]
[351989755,1738869073087,-407.95,0.00017397,2]
[351989756,1738869073097,-500.0,0.00017397,2]
[351989757,1738869073111,-500.0,0.00017397,2]
[351989758,1738869073121,-917.36,0.00017397,2]
[351989759,1738869073131,-2012.37,0.00017397,2]
[351989760,1738869073150,-581.15,0.00017397,2]
[351989761,1738869073160,-1680.18,0.00017397,2]
[351989762,1738869073170,-1207.36,0.00017397,2]
[351989763,1738869073180,-581.67,0.00017397,2]
[351989764,1738869073189,-1132.12,0.00017397,2]
[351989765,1738869073198,-500.0,0.00017397,2]
[351989766,1738869073208,-1498.04,0.00017397,2]
[351989767,1738869073219,-500.0,0.00017397,2]
[351989768,1738869073229,-500.0,0.00017397,2]
[351989769,1738869073239,-1513.16,0.00017397,2]
[351989770,1738869073249,-925.3,0.00017397,2]
[351989771,1738869073258,-2321.43,0.00017397,2]
[351989772,1738869073268,-530.46,0.00017397,2]
[351989773,1738869073278,-819.37,0.00017397,2]
[351989774,1738869073288,-751.5,0.00017397,2]
[351989775,1738869073298,-1131.41,0.00017397,2]
[351989776,1738869073307,-516.32,0.00017397,2]
[351989777,1738869073317,-500.0,0.00017397,2]
[351989778,1738869073328,-500.0,0.00017397,2]
[351989779,1738869073338,-887.03,0.00017397,2]
[351989780,1738869073348,-500.0,0.00017397,2]
[351989781,1738869073363,-1716.92,0.00017397,2]
[351989782,1738869073373,-750.35,0.00017397,2]
[351989783,1738869073389,-500.0,0.00017397,2]
[351989784,1738869073401,-985.16,0.00017397,2]
[351989785,1738869073411,-1146.94,0.00017397,2]
[351989786,1738869073422,-500.0,0.00017397,2]
[351989787,1738869073434,-1123.01,0.00017397,2]
[351989788,1738869073445,-1926.78,0.00017397,2]
[351989789,1738869073456,-500.0,0.00017397,2]
[351989790,1738869073466,-849.89,0.00017397,2]
[351989791,1738869073478,-774.75,0.00017397,2]
[351989792,1738869073491,-910.06,0.00017397,2]
[351989793,1738869073502,-750.33,0.00017397,2]
[351989794,1738869073512,-608.94,0.00017397,2]
[351989795,1738869073522,-1462.54,0.00017397,2]
[351989796,1738869073533,-543.86,0.00017397,2]
[351989797,1738869073544,-561.62,0.00017397,2]
[351989798,1738869073554,-527.28,0.00017397,2]
[351989799,1738869073564,-500.0,0.00017397,2]
[351989800,1738869073574,-500.0,0.00017397,2]
[351989801,1738869073585,-726.86,0.00017397,2]
[351989802,1738869073594,-871.24,0.00017397,2]
[351989803,1738869073610,-839.79,0.00017397,2]
[351989804,1738869073620,-679.77,0.00017397,2]
[351989805,1738869073629,-500.0,0.00017397,2]
[351989806,1738869073639,-774.5,0.00017397,2]
[351989807,1738869073648,-639.6,0.00017397,2]
[351989808,1738869073659,-500.0,0.00017397,2]
[351989809,1738869073669,-200.0,0.00017398,2]
[351989810,1738869073679,-200.0,0.000174,2]
[351989811,1738869073690,-4180.88099819,0.00017401,2]
[351989812,1738869073700,-4541.03641052,0.00017402,2]
[351989813,1738869073710,-4180.88099819,0.00017404,2]
[351989814,1738869073720,-2392.94129809,0.00017406,2]
[351989815,1738869073729,-2270.51820527,0.00017409,2]
[351989816,1738869073739,-2090.4404991,0.00017411,2]
[351989817,1738869073750,-2392.94129809,0.00017412,2]
[351989818,1738869073759,-2773.66625368,0.00017414,2]
[351989819,1738869073769,-200.0,0.00017414,2]
[351989820,1738869073778,-2392.94129809,0.00017414,2]
[351989821,1738869073787,-2773.66625368,0.00017414,2]
[351989822,1738869073796,-26684.35474103,0.00017415,2]
[351989823,1738869074449,-500.0,0.00016438,2]
[351989824,1738869074460,-500.0,0.00016438,2]
[351989825,1738869074471,-500.0,0.00016438,2]
[351989826,1738869074482,-238.1,0.00016575,2]
[351989827,1738869074492,-354.85,0.00016575,2]
[351989828,1738869074502,-2032.98,0.00016712,2]
[351989829,1738869074516,-809.29577123,0.00016849,2]
[351989830,1738869074528,-381.41518321,0.00016849,2]
[351989831,1738869074540,-650.59750741,0.00016849,2]
[351989832,1738869113660,200.145142,9.881e-05,2]
[351989833,1738869175807,152.491536,9.881e-05,2]
[351989834,1738869188772,151.48325,9.881e-05,2]
[351989835,1738869248721,170.418669,9.881e-05,2]
[351989836,1738869309066,151.48325,9.881e-05,2]
[351989837,1738869353876,152.491536,9.881e-05,2]
[351989839,1738869551240,151.48325,9.881e-05,2]
[351989840,1738869594581,152.491536,9.881e-05,2]
[351989841,1738869789634,151.48325,9.881e-05,2]
[351989842,1738869834633,152.491536,9.881e-05,2]
[351989843,1738869907835,262574.3464903,0.0001,2]
[351989868,1738870231880,-166.66666668,0.00010055,2]
[351989869,1738870231890,-156.33,0.00010137,2]
[351989870,1738870231899,-151.48325,0.00010155,2]
[351989871,1738870231908,-152.491536,0.00010155,2]
[351989872,1738870231918,-152.491536,0.00010429,2]
[351989873,1738870231927,-151.48325,0.00010566,2]
[351989874,1738870231937,-152.491536,0.00010703,2]
[351989875,1738870231947,-151.48325,0.0001084,2]
[351989876,1738870231956,-152.491536,0.00010977,2]
[351989877,1738870231965,-151.48325,0.00011251,2]
[351989878,1738870231974,-152.491536,0.00011251,2]
[351989879,1738870231983,-300.0,0.00011799,2]
[351989880,1738870231992,-150.0,0.00011799,2]
[351989881,1738870232006,-4907.51261237,0.000118,2]
[351989882,1738870232017,-943.7974135,0.000118,2]
[351989883,1738870232033,-559.87427515,0.000118,2]
[351989884,1738870232055,-25430.0,0.000118,2]
[351989885,1738870232066,-6099.9999999,0.000118,2]
[351989886,1738870232077,-5880.0,0.000118,2]
[351989887,1738870232088,-1550.0,0.000118,2]
[351989888,1738870232099,-10421.44938844,0.000118,2]
[351989889,1738870232119,-1347.13525855,0.000118,2]
[351989890,1738870232129,-14021.5236,0.000118,2]
[351989891,1738870232140,-2804.26055293,0.000118,2]
[351989892,1738870232161,-262.18282224,0.000118,2]
[351989893,1738870232172,-284.24426,0.000118,2]
[351989894,1738870232183,-927.61514,0.000118,2]
[351989895,1738870232194,-473.33872835,0.000118,2]
[351989897,1738870232210,-2624.84769074,0.000118,2]
[351989899,1738870232221,-1101.0,0.000118,2]
[351989906,1738870237705,-476.8033829,0.000118,2]
[351989911,1738870237780,-892.46318179,0.000118,2]
[351989913,1738870237792,-872.55,0.000118,2]
[351989919,1738870237838,-521.48341395,0.000118,2]
[351989925,1738870237971,-5547.74016914,0.000118,2]
[351990117,1738870239818,-1625.9285623,0.000118,2]
[351990119,1738870239829,-268.032,0.000118,2]
[351990120,1738870239883,-518.72365054,0.000118,2]
[351990121,1738870239896,-9895.16742827,0.000118,2]
[351990122,1738870239905,-420.0,0.00012955,2]
[351990123,1738870239915,-936.17,0.0001303,2]
[351990124,1738870239924,-166.66666666,0.00013197,2]
[351990125,1738870239936,-2173.63591012,0.0001421,7]
[351990126,1738870239945,-2751.0,0.00014652,2]
[351990127,1738870239955,-500.0,0.0001474,2]
[351990128,1738870239964,-196.2,0.00014777,2]
[351990129,1738870239974,-150.0,0.00015059,2]
[351990130,1738870239983,-150.0,0.00015072,2]
[351990131,1738870239992,-936.17,0.00015294,2]
[351990132,1738870240001,-201.85,0.00015347,2]
[351990133,1738870240014,-150.0,0.00015425,2]
[351990135,1738870240023,-150.0,0.00015429,2]
[351990137,1738870240033,-165.58,0.00015533,2]
[351990139,1738870240043,-150.0,0.00015551,2]
[351990141,1738870240054,-1000.0,0.00015594,2]
[351990143,1738870240063,-150.0,0.00015714,2]
[351990145,1738870240073,-183.92,0.00015749,2]
[351990147,1738870240083,-150.0,0.00015868,2]
[351990149,1738870240092,-150.0,0.00015889,2]
[351990151,1738870240103,-532.91,0.00016116,2]
[351990153,1738870240112,-1114.77,0.00016116,2]
[351990155,1738870240122,-3489.04,0.00016116,2]
[351990157,1738870240132,-1709.68,0.00016116,5]
[351990159,1738870240143,-639.11,0.00016116,2]
[351990161,1738870240153,-480.42,0.00016116,2]
[351990163,1738870240163,-5587.09290455,0.00016116,2]
[351990166,1738870240176,-4412.89709545,0.00016116,2]
[351990168,1738870240186,-299.99,0.00016116,4]
[351990170,1738870240196,-150.99,0.00016116,2]
[351990172,1738870240206,-999.99,0.00016116,2]
[351990174,1738870240215,-468.23,0.00016116,2]
[351990176,1738870240224,-150.0,0.00016123,2]
[351990178,1738870240234,-150.0,0.00016269,2]
[351990180,1738870240244,-150.0,0.00016319,2]
[351990182,1738870240254,-166.66666666,0.00016338,2]
[351990184,1738870240269,-2119.96263169,0.00016338,2]
[351990186,1738870240278,-7580.82370843,0.00016338,2]
[351990188,1738870240288,-984.89,0.00016395,2]
[351990190,1738870240297,-984.89,0.00016395,2]
[351990192,1738870240306,-984.89,0.00016395,2]
[351990194,1738870240315,-984.89,0.00016395,2]
[351990196,1738870240325,-984.89,0.00016395,2]
[351990198,1738870240334,-984.89,0.00016395,2]
[351990200,1738870240344,-984.89,0.00016395,2]
[351990202,1738870240353,-984.89,0.00016395,2]
[351990204,1738870240363,-380.72,0.00016437,2]
[351990206,1738870240373,-369.0,0.00016437,2]
[351990208,1738870240383,-370.11,0.00016437,2]
[351990210,1738870240393,-367.87,0.00016437,2]
[351990212,1738870240403,-379.82,0.00016437,2]
[351990214,1738870240412,-372.81,0.00016438,2]
[351990216,1738870240421,-500.0,0.00016438,2]
[351990218,1738870240431,-500.84898559,0.00016438,2]
[351990220,1738870240440,-500.0,0.00016438,2]
[351990222,1738870240450,-500.0,0.00016438,2]
[351990224,1738870240460,-501.15212674,0.00016438,2]
[351990226,1738870240470,-617.10135635,0.00016438,2]
[351990228,1738870240480,-503.61936873,0.00016438,2]
[351990230,1738870240490,-318.15034882,0.00016438,2]
[351990232,1738870240500,-500.0,0.00016438,2]
[351990234,1738870240514,-500.0,0.00016438,2]
[351990236,1738870240524,-501.74987338,0.00016438,2]
[351990239,1738870240534,-520.3041098,0.00016438,2]
[351990240,1738870240543,-500.0,0.00016438,2]
[351990243,1738870240553,-500.0,0.00016438,2]
[351990245,1738870240562,-624.37,0.00016438,2]
[351990247,1738870240574,-500.0,0.00016438,2]
[351990249,1738870240583,-500.0,0.00016438,2]
[351990251,1738870240594,-500.0,0.00016438,2]
[351990253,1738870240603,-500.0,0.00016438,2]
[351990255,1738870240612,-500.0,0.00016438,2]
[351990257,1738870240622,-500.0,0.00016438,2]
[351990259,1738870240631,-500.0,0.00016438,2]
[351990261,1738870240641,-500.0,0.00016438,2]
[351990263,1738870240652,-500.0,0.00016438,2]
[351990265,1738870240662,-500.0,0.00016438,2]
[351990267,1738870240672,-500.0,0.00016438,2]
[351990269,1738870240681,-500.0,0.00016438,2]
[351990271,1738870240691,-500.0,0.00016438,2]
[351990273,1738870240701,-500.0,0.00016438,2]
[351990275,1738870240710,-500.0,0.00016438,2]
[351990277,1738870240720,-500.0,0.00016438,2]
[351990279,1738870240730,-500.0,0.00016438,2]
[351990281,1738870240739,-500.0,0.00016438,2]
[351990283,1738870240748,-500.0,0.00016438,2]
[351990285,1738870240758,-500.0,0.00016438,2]
[351990287,1738870240770,-276.16121092,0.00016438,2]
[351990289,1738870240783,-223.83878908,0.00016438,2]
[351990291,1738870240793,-30.96271067,0.00016438,2]
[351990293,1738870240806,-415.405,0.00016438,2]
[351990296,1738870240819,-53.63228933,0.00016438,2]
[351990297,1738870240828,-500.0,0.00016438,2]
[351990300,1738870240838,-17.32610261,0.00016438,2]
[351990302,1738870240854,-482.67389739,0.00016438,2]
[351990304,1738870240864,-3.45778951,0.00016438,2]
[351990306,1738870240876,-487.78182571,0.00016438,2]
[351990310,1738870240912,-8.76038478,0.00016438,2]
[351990313,1738870240922,-500.0,0.00016438,2]
[351990315,1738870240933,-500.0,0.00016438,2]
[351990317,1738870240943,-500.0,0.00016438,2]
[351990319,1738870240953,-500.0,0.00016438,2]
[351990321,1738870240963,-500.0,0.00016438,2]
[351990323,1738870240973,-570.06,0.00016438,2]
[351990325,1738870240982,-500.0,0.00016438,2]
[351990327,1738870240993,-500.0,0.00016438,2]